[Event "Titled Tuesday Blitz January 03 Early 2023"]
[White "Diaz Villagran, Robert"]
[Black "Mogirzan, Matei-Valeriu"]
[WhiteFideId "3404056"]
[BlackFideId "1257455"]
[WhiteElo "2315"]
[BlackElo "1813"]
[Result "1-0"]
[Round "06"]
[TimeControl "180+2"]
[Date "2023.01.03"]
[WhiteClock "0:01:38"]
[BlackClock "0:00:55"]

1. e4 {[%clk 0:02:56]}  c5 {[%clk 0:02:56]} 2. c3 {[%clk 0:02:56]}  d6 {[%clk 0:02:51]} 3. d4 {[%clk 0:02:57]}  cxd4 {[%clk 0:02:51]} 4. cxd4 {[%clk 0:02:57]}  g6 {[%clk 0:02:51]} 5. Nf3 {[%clk 0:02:47]}  Bg7 {[%clk 0:02:50]} 6. Nc3 {[%clk 0:02:45]}  Nf6 {[%clk 0:02:47]} 7. h3 {[%clk 0:02:41]}  O-O {[%clk 0:02:47]} 8. Be2 {[%clk 0:02:38]}  a6 {[%clk 0:02:42]} 9. a4 {[%clk 0:02:36]}  Qa5 {[%clk 0:02:36]} 10. O-O {[%clk 0:02:35]}  b5 {[%clk 0:02:35]} 11. e5 {[%clk 0:02:31]}  Nfd7 {[%clk 0:02:30]} 12. Nd5 {[%clk 0:02:24]}  Nc6 {[%clk 0:02:22]} 13. axb5 {[%clk 0:02:09]}  Qxa1 {[%clk 0:02:16]} 14. bxc6 {[%clk 0:02:10]}  Nb8 {[%clk 0:02:05]} 15. Nxe7+ {[%clk 0:02:07]}  Kh8 {[%clk 0:02:03]} 16. exd6 {[%clk 0:02:04]}  Be6 {[%clk 0:01:09]} 17. d5 {[%clk 0:01:51]}  Bf5 {[%clk 0:00:59]} 18. Nxf5 {[%clk 0:01:41]}  gxf5 {[%clk 0:01:00]} 19. Qc2 {[%clk 0:01:41]}  Qa5 {[%clk 0:00:56]} 20. Qxf5 {[%clk 0:01:39]}  Nxc6 {[%clk 0:00:55]} 21. Ng5 {[%clk 0:01:38]} 1-0


[Site "https://www.chess.com"]

[Event "Titled Tuesday Blitz January 03 Early 2023"]
[White "Mohammed, Zozek Salah Mohammed"]
[Black "De La Colina, Nicolas"]
[WhiteFideId "4803361"]
[BlackFideId "30946921"]
[WhiteElo "2210"]
[BlackElo "2244"]
[Result "1-0"]
[Round "06"]
[TimeControl "180+2"]
[Date "2023.01.03"]
[WhiteClock "0:00:09"]
[BlackClock "0:00:28"]

1. d4 {[%clk 0:02:52]}  Nf6 {[%clk 0:02:58]} 2. Nf3 {[%clk 0:02:49]}  e6 {[%clk 0:02:56]} 3. c4 {[%clk 0:02:50]}  c5 {[%clk 0:02:55]} 4. g3 {[%clk 0:02:49]}  b6 {[%clk 0:02:51]} 5. Bg2 {[%clk 0:02:49]}  Bb7 {[%clk 0:02:51]} 6. O-O {[%clk 0:02:49]}  cxd4 {[%clk 0:02:50]} 7. Nxd4 {[%clk 0:02:48]}  Bxg2 {[%clk 0:02:51]} 8. Kxg2 {[%clk 0:02:48]}  Be7 {[%clk 0:02:51]} 9. b3 {[%clk 0:02:48]}  O-O {[%clk 0:02:48]} 10. Bb2 {[%clk 0:02:48]}  d6 {[%clk 0:02:47]} 11. Nc3 {[%clk 0:02:48]}  a6 {[%clk 0:02:47]} 12. Rc1 {[%clk 0:02:48]}  Qc7 {[%clk 0:02:47]} 13. Qd2 {[%clk 0:02:47]}  Qb7+ {[%clk 0:02:47]} 14. f3 {[%clk 0:02:47]}  Nbd7 {[%clk 0:02:47]} 15. Rfd1 {[%clk 0:02:47]}  Rfd8 {[%clk 0:02:47]} 16. e4 {[%clk 0:02:46]}  Rac8 {[%clk 0:02:47]} 17. Qe3 {[%clk 0:02:36]}  Nf8 {[%clk 0:02:42]} 18. h4 {[%clk 0:02:33]}  N8d7 {[%clk 0:02:24]} 19. Rd2 {[%clk 0:02:18]}  Bf8 {[%clk 0:02:24]} 20. Rcd1 {[%clk 0:02:17]}  Ne5 {[%clk 0:02:06]} 21. f4 {[%clk 0:02:06]}  Neg4 {[%clk 0:02:02]} 22. Qf3 {[%clk 0:02:06]}  h5 {[%clk 0:02:02]} 23. a4 {[%clk 0:01:43]}  Be7 {[%clk 0:02:01]} 24. Ba3 {[%clk 0:01:36]}  Rd7 {[%clk 0:01:37]} 25. Bb2 {[%clk 0:01:35]}  Rcd8 {[%clk 0:01:35]} 26. Ba1 {[%clk 0:01:23]}  Qc7 {[%clk 0:01:28]} 27. Bb2 {[%clk 0:01:17]}  Bf8 {[%clk 0:01:11]} 28. Ba1 {[%clk 0:01:14]}  Qc5 {[%clk 0:01:03]} 29. Bb2 {[%clk 0:01:10]}  Qb4 {[%clk 0:01:02]} 30. Na2 {[%clk 0:01:03]}  Qc5 {[%clk 0:01:01]} 31. Nc3 {[%clk 0:01:03]}  g6 {[%clk 0:00:36]} 32. Rd3 {[%clk 0:00:49]}  Bg7 {[%clk 0:00:35]} 33. R3d2 {[%clk 0:00:49]}  Qc7 {[%clk 0:00:28]} 34. Ba1 {[%clk 0:00:46]}  e5 {[%clk 0:00:15]} 35. Nde2 {[%clk 0:00:40]}  Qc5 {[%clk 0:00:14]} 36. Rd3 {[%clk 0:00:35]}  exf4 {[%clk 0:00:14]} 37. gxf4 {[%clk 0:00:31]}  Qc7 {[%clk 0:00:11]} 38. Ng3 {[%clk 0:00:26]}  Re8 {[%clk 0:00:06]} 39. R1d2 {[%clk 0:00:19]}  Rde7 {[%clk 0:00:06]} 40. Rd1 {[%clk 0:00:16]}  Rd7 {[%clk 0:00:06]} 41. R1d2 {[%clk 0:00:15]}  Nh6 {[%clk 0:00:05]} 42. Rd1 {[%clk 0:00:14]}  Red8 {[%clk 0:00:05]} 43. R1d2 {[%clk 0:00:13]}  Nh7 {[%clk 0:00:05]} 44. Nd5 {[%clk 0:00:13]}  Qb7 {[%clk 0:00:05]} 45. Bxg7 {[%clk 0:00:13]}  Kxg7 {[%clk 0:00:05]} 46. Qe3 {[%clk 0:00:13]}  Kg8 {[%clk 0:00:05]} 47. Qd4 {[%clk 0:00:12]}  Ng4 {[%clk 0:00:05]} 48. f5 {[%clk 0:00:11]}  Re8 {[%clk 0:00:03]} 49. fxg6 {[%clk 0:00:10]}  fxg6 {[%clk 0:00:04]} 50. Rf3 {[%clk 0:00:10]}  Ne5 {[%clk 0:00:05]} 51. Rff2 {[%clk 0:00:08]}  Rf7 {[%clk 0:00:05]} 52. Rxf7 {[%clk 0:00:07]}  Qxf7 {[%clk 0:00:06]} 53. Rf2 {[%clk 0:00:07]}  Qg7 {[%clk 0:00:06]} 54. Qxb6 {[%clk 0:00:07]}  g5 {[%clk 0:00:06]} 55. Nxh5 {[%clk 0:00:04]}  Qg6 {[%clk 0:00:06]} 56. Ndf6+ {[%clk 0:00:04]}  Nxf6 {[%clk 0:00:05]} 57. Nxf6+ {[%clk 0:00:05]}  Kh8 {[%clk 0:00:05]} 58. Nxe8 {[%clk 0:00:05]}  gxh4+ {[%clk 0:00:06]} 59. Kf1 {[%clk 0:00:05]}  Qxe4 {[%clk 0:00:05]} 60. Qxd6 {[%clk 0:00:03]}  Qh1+ {[%clk 0:00:03]} 61. Ke2 {[%clk 0:00:04]}  Qe4+ {[%clk 0:00:04]} 62. Kf1 {[%clk 0:00:04]}  Qh1+ {[%clk 0:00:03]} 63. Ke2 {[%clk 0:00:05]}  Qe4+ {[%clk 0:00:04]} 64. Kd2 {[%clk 0:00:05]}  Nf3+ {[%clk 0:00:05]} 65. Rxf3 {[%clk 0:00:04]}  Qxf3 {[%clk 0:00:06]} 66. Qf6+ {[%clk 0:00:05]}  Qxf6 {[%clk 0:00:05]} 67. Nxf6 {[%clk 0:00:06]}  h3 {[%clk 0:00:06]} 68. Ng4 {[%clk 0:00:06]}  Kg7 {[%clk 0:00:06]} 69. Ke3 {[%clk 0:00:06]}  Kg6 {[%clk 0:00:07]} 70. Kf3 {[%clk 0:00:06]}  Kf5 {[%clk 0:00:07]} 71. c5 {[%clk 0:00:06]}  h2 {[%clk 0:00:07]} 72. Nxh2 {[%clk 0:00:04]}  Ke5 {[%clk 0:00:08]} 73. b4 {[%clk 0:00:04]}  Kd5 {[%clk 0:00:09]} 74. Ke3 {[%clk 0:00:04]}  a5 {[%clk 0:00:09]} 75. b5 {[%clk 0:00:04]}  Kxc5 {[%clk 0:00:09]} 76. Kd3 {[%clk 0:00:03]}  Kb6 {[%clk 0:00:10]} 77. Kc4 {[%clk 0:00:03]}  Kb7 {[%clk 0:00:11]} 78. Nf3 {[%clk 0:00:03]}  Ka7 {[%clk 0:00:12]} 79. Nd4 {[%clk 0:00:04]}  Ka8 {[%clk 0:00:13]} 80. Nc2 {[%clk 0:00:04]}  Kb8 {[%clk 0:00:14]} 81. Nd4 {[%clk 0:00:05]}  Ka8 {[%clk 0:00:15]} 82. Nb3 {[%clk 0:00:05]}  Kb8 {[%clk 0:00:16]} 83. Nxa5 {[%clk 0:00:06]}  Ka8 {[%clk 0:00:16]} 84. Kc5 {[%clk 0:00:06]}  Kb8 {[%clk 0:00:17]} 85. b6 {[%clk 0:00:07]}  Ka8 {[%clk 0:00:18]} 86. Kb5 {[%clk 0:00:07]}  Kb8 {[%clk 0:00:19]} 87. Ka6 {[%clk 0:00:07]}  Ka8 {[%clk 0:00:18]} 88. b7+ {[%clk 0:00:07]}  Kb8 {[%clk 0:00:16]} 89. Nc6+ {[%clk 0:00:08]}  Kc7 {[%clk 0:00:17]} 90. b8=Q+ {[%clk 0:00:07]}  Kd7 {[%clk 0:00:17]} 91. Qb7+ {[%clk 0:00:06]}  Ke6 {[%clk 0:00:18]} 92. Nb4 {[%clk 0:00:07]}  Kf5 {[%clk 0:00:19]} 93. Kb6 {[%clk 0:00:07]}  Kg5 {[%clk 0:00:19]} 94. a5 {[%clk 0:00:08]}  Kf6 {[%clk 0:00:20]} 95. a6 {[%clk 0:00:09]}  Kf5 {[%clk 0:00:21]} 96. a7 {[%clk 0:00:09]}  Kg6 {[%clk 0:00:22]} 97. a8=Q {[%clk 0:00:09]}  Kf6 {[%clk 0:00:23]} 98. Qac8 {[%clk 0:00:09]}  Ke5 {[%clk 0:00:23]} 99. Qc4 {[%clk 0:00:09]}  Kf6 {[%clk 0:00:23]} 100. Qbd5 {[%clk 0:00:09]}  Ke7 {[%clk 0:00:24]} 101. Qcc6 {[%clk 0:00:09]}  Kf8 {[%clk 0:00:24]} 102. Qdd7 {[%clk 0:00:09]}  Kg8 {[%clk 0:00:24]} 103. Kc7 {[%clk 0:00:09]}  Kf8 {[%clk 0:00:23]} 104. Kd6 {[%clk 0:00:09]}  Kg8 {[%clk 0:00:24]} 105. Ke6 {[%clk 0:00:10]}  Kf8 {[%clk 0:00:25]} 106. Kf6 {[%clk 0:00:09]}  Kg8 {[%clk 0:00:26]} 107. Kg6 {[%clk 0:00:09]}  Kf8 {[%clk 0:00:27]} 108. Qcc7 {[%clk 0:00:09]}  Kg8 {[%clk 0:00:28]} 109. Qe7 {[%clk 0:00:09]} 1-0


[Site "https://www.chess.com"]

[Event "Titled Tuesday Blitz January 03 Early 2023"]
[White "Kusa, Jakub"]
[Black "Sharifov, Mekhriddin"]
[WhiteFideId "395595"]
[BlackFideId "14701545"]
[WhiteElo "2366"]
[BlackElo "2209"]
[Result "0-1"]
[Round "06"]
[TimeControl "180+2"]
[Date "2023.01.03"]
[WhiteClock "0:00:33"]
[BlackClock "0:00:08"]

1. d4 {[%clk 0:03:00]}  a5 {[%clk 0:02:59]} 2. e4 {[%clk 0:02:58]}  b6 {[%clk 0:02:59]} 3. Nf3 {[%clk 0:02:58]}  Bb7 {[%clk 0:02:59]} 4. Bd3 {[%clk 0:02:58]}  g6 {[%clk 0:02:59]} 5. O-O {[%clk 0:02:58]}  Bg7 {[%clk 0:02:59]} 6. c3 {[%clk 0:02:58]}  e6 {[%clk 0:02:58]} 7. Bg5 {[%clk 0:02:57]}  Ne7 {[%clk 0:02:55]} 8. Nbd2 {[%clk 0:02:55]}  d6 {[%clk 0:02:55]} 9. Qe2 {[%clk 0:02:55]}  Nd7 {[%clk 0:02:55]} 10. Rfe1 {[%clk 0:02:54]}  e5 {[%clk 0:02:51]} 11. Rad1 {[%clk 0:02:52]}  h6 {[%clk 0:02:50]} 12. Be3 {[%clk 0:02:51]}  O-O {[%clk 0:02:50]} 13. Nc4 {[%clk 0:02:48]}  Qe8 {[%clk 0:02:37]} 14. dxe5 {[%clk 0:02:47]}  Nxe5 {[%clk 0:02:31]} 15. Ncxe5 {[%clk 0:02:48]}  dxe5 {[%clk 0:02:32]} 16. Nd2 {[%clk 0:02:41]}  f5 {[%clk 0:02:19]} 17. f3 {[%clk 0:02:39]}  Rd8 {[%clk 0:02:10]} 18. Nc4 {[%clk 0:02:20]}  Kh8 {[%clk 0:02:07]} 19. Bf2 {[%clk 0:02:18]}  Nc6 {[%clk 0:01:57]} 20. Ne3 {[%clk 0:02:17]}  Ne7 {[%clk 0:01:52]} 21. Bb5 {[%clk 0:02:08]}  Bc6 {[%clk 0:01:43]} 22. Bxc6 {[%clk 0:02:07]}  Qxc6 {[%clk 0:01:41]} 23. exf5 {[%clk 0:02:06]}  gxf5 {[%clk 0:01:39]} 24. Bh4 {[%clk 0:02:04]}  Rxd1 {[%clk 0:01:38]} 25. Rxd1 {[%clk 0:02:02]}  Ng6 {[%clk 0:01:39]} 26. Bf2 {[%clk 0:01:56]}  Nf4 {[%clk 0:01:33]} 27. Qf1 {[%clk 0:01:55]}  e4 {[%clk 0:01:27]} 28. Bg3 {[%clk 0:01:33]}  Nd3 {[%clk 0:01:24]} 29. fxe4 {[%clk 0:01:29]}  fxe4 {[%clk 0:01:25]} 30. Qe2 {[%clk 0:01:28]}  Qc5 {[%clk 0:01:19]} 31. Kh1 {[%clk 0:01:24]}  Nxb2 {[%clk 0:01:15]} 32. Qxb2 {[%clk 0:01:11]}  Qxe3 {[%clk 0:01:14]} 33. Bxc7 {[%clk 0:01:11]}  Rf2 {[%clk 0:00:27]} 34. Bxb6 {[%clk 0:01:06]}  Rxb2 {[%clk 0:00:20]} 35. Bxe3 {[%clk 0:01:06]}  Rxa2 {[%clk 0:00:19]} 36. Bd4 {[%clk 0:00:59]}  Bxd4 {[%clk 0:00:18]} 37. cxd4 {[%clk 0:01:00]}  e3 {[%clk 0:00:17]} 38. d5 {[%clk 0:00:58]}  Rd2 {[%clk 0:00:16]} 39. Re1 {[%clk 0:00:57]}  Rxd5 {[%clk 0:00:16]} 40. g4 {[%clk 0:00:56]}  Rd3 {[%clk 0:00:16]} 41. Kg2 {[%clk 0:00:56]}  a4 {[%clk 0:00:15]} 42. Kf3 {[%clk 0:00:56]}  a3 {[%clk 0:00:15]} 43. Rb1 {[%clk 0:00:52]}  a2 {[%clk 0:00:14]} 44. Rb8+ {[%clk 0:00:52]}  Kg7 {[%clk 0:00:13]} 45. Ra8 {[%clk 0:00:52]}  Rd2 {[%clk 0:00:12]} 46. Kxe3 {[%clk 0:00:49]}  Rxh2 {[%clk 0:00:13]} 47. Ra6 {[%clk 0:00:48]}  Kf7 {[%clk 0:00:12]} 48. Kf4 {[%clk 0:00:47]}  Rf2+ {[%clk 0:00:11]} 49. Kg3 {[%clk 0:00:47]}  Rb2 {[%clk 0:00:12]} 50. Kh4 {[%clk 0:00:44]}  Kg7 {[%clk 0:00:10]} 51. Kg3 {[%clk 0:00:42]}  Kf8 {[%clk 0:00:09]} 52. Kf3 {[%clk 0:00:42]}  Ke7 {[%clk 0:00:10]} 53. Kf4 {[%clk 0:00:39]}  Kd7 {[%clk 0:00:10]} 54. Kf5 {[%clk 0:00:39]}  Kc7 {[%clk 0:00:11]} 55. Ra3 {[%clk 0:00:36]}  Kb7 {[%clk 0:00:09]} 56. Kg6 {[%clk 0:00:35]}  Rb6+ {[%clk 0:00:09]} 57. Kh5 {[%clk 0:00:33]}  Ra6 {[%clk 0:00:10]} 58. Rb3+ {[%clk 0:00:33]}  Ka8 {[%clk 0:00:08]} 0-1


[Site "https://www.chess.com"]

[Event "Titled Tuesday Blitz January 03 Early 2023"]
[White "Aaditya Dhingra"]
[Black "TheKnightOfBosnia"]
[WhiteFideId "25678191"]
[WhiteElo "2027"]
[BlackElo "2481"]
[Result "0-1"]
[Round "06"]
[TimeControl "180+2"]
[Date "2023.01.03"]
[WhiteClock "0:00:01"]
[BlackClock "0:00:20"]

1. e4 {[%clk 0:03:00]}  e5 {[%clk 0:02:59]} 2. Nf3 {[%clk 0:02:58]}  Nc6 {[%clk 0:02:59]} 3. Bb5 {[%clk 0:02:56]}  a6 {[%clk 0:03:00]} 4. Ba4 {[%clk 0:02:56]}  Nf6 {[%clk 0:03:00]} 5. O-O {[%clk 0:02:55]}  b5 {[%clk 0:03:00]} 6. Bb3 {[%clk 0:02:55]}  Bb7 {[%clk 0:03:01]} 7. d3 {[%clk 0:02:53]}  Be7 {[%clk 0:03:02]} 8. a4 {[%clk 0:02:52]}  d6 {[%clk 0:02:59]} 9. Nc3 {[%clk 0:02:51]}  b4 {[%clk 0:02:59]} 10. Nd5 {[%clk 0:02:51]}  O-O {[%clk 0:02:57]} 11. a5 {[%clk 0:02:50]}  Rb8 {[%clk 0:02:55]} 12. h3 {[%clk 0:02:48]}  Re8 {[%clk 0:02:50]} 13. Be3 {[%clk 0:02:44]}  h6 {[%clk 0:02:44]} 14. Nh2 {[%clk 0:02:37]}  Bf8 {[%clk 0:02:37]} 15. Ng4 {[%clk 0:02:33]}  Nxd5 {[%clk 0:02:35]} 16. Bxd5 {[%clk 0:02:32]}  h5 {[%clk 0:02:03]} 17. Nh2 {[%clk 0:02:23]}  g6 {[%clk 0:02:00]} 18. f4 {[%clk 0:02:23]}  exf4 {[%clk 0:01:56]} 19. Bxf4 {[%clk 0:02:16]}  Ne5 {[%clk 0:01:54]} 20. Bxe5 {[%clk 0:02:12]}  Bxd5 {[%clk 0:01:52]} 21. Bf6 {[%clk 0:02:12]}  Be7 {[%clk 0:01:45]} 22. Bxe7 {[%clk 0:02:10]}  Qxe7 {[%clk 0:01:45]} 23. exd5 {[%clk 0:02:10]}  Qe3+ {[%clk 0:01:45]} 24. Kh1 {[%clk 0:02:10]}  Rb5 {[%clk 0:01:45]} 25. Re1 {[%clk 0:02:02]}  Qxe1+ {[%clk 0:01:45]} 26. Qxe1 {[%clk 0:02:02]}  Rxe1+ {[%clk 0:01:46]} 27. Rxe1 {[%clk 0:02:03]}  Rxd5 {[%clk 0:01:46]} 28. Ra1 {[%clk 0:02:00]}  Rc5 {[%clk 0:01:47]} 29. Rc1 {[%clk 0:01:57]}  b3 {[%clk 0:01:42]} 30. c4 {[%clk 0:01:50]}  Rxa5 {[%clk 0:01:42]} 31. Nf1 {[%clk 0:01:49]}  Ra2 {[%clk 0:01:41]} 32. Rb1 {[%clk 0:01:47]}  a5 {[%clk 0:01:41]} 33. Ne3 {[%clk 0:01:40]}  c6 {[%clk 0:01:39]} 34. Nd1 {[%clk 0:01:40]}  a4 {[%clk 0:01:31]} 35. Nc3 {[%clk 0:01:39]}  a3 {[%clk 0:01:31]} 36. bxa3 {[%clk 0:01:37]}  Rxa3 {[%clk 0:01:31]} 37. Ne4 {[%clk 0:01:34]}  b2 {[%clk 0:01:26]} 38. Rxb2 {[%clk 0:01:29]}  Rxd3 {[%clk 0:01:27]} 39. Rc2 {[%clk 0:01:22]}  Kg7 {[%clk 0:01:25]} 40. Kg1 {[%clk 0:01:22]}  d5 {[%clk 0:01:24]} 41. cxd5 {[%clk 0:01:21]}  cxd5 {[%clk 0:01:25]} 42. Nc5 {[%clk 0:01:20]}  Rd1+ {[%clk 0:01:24]} 43. Kf2 {[%clk 0:01:19]}  h4 {[%clk 0:01:24]} 44. Nb3 {[%clk 0:01:16]}  Rd3 {[%clk 0:01:22]} 45. Nc1 {[%clk 0:01:15]}  Rd1 {[%clk 0:01:19]} 46. Ne2 {[%clk 0:01:14]}  d4 {[%clk 0:01:15]} 47. Nf4 {[%clk 0:01:02]}  g5 {[%clk 0:01:14]} 48. Nd5 {[%clk 0:00:59]}  d3 {[%clk 0:01:10]} 49. Rb2 {[%clk 0:00:57]}  Rc1 {[%clk 0:01:00]} 50. Ne3 {[%clk 0:00:55]}  Kg6 {[%clk 0:00:56]} 51. Rd2 {[%clk 0:00:54]}  Rc3 {[%clk 0:00:56]} 52. Nd1 {[%clk 0:00:53]}  Rc2 {[%clk 0:00:54]} 53. Ke3 {[%clk 0:00:53]}  Rxd2 {[%clk 0:00:54]} 54. Kxd2 {[%clk 0:00:52]}  Kf5 {[%clk 0:00:53]} 55. Kxd3 {[%clk 0:00:46]}  Kf4 {[%clk 0:00:52]} 56. Ne3 {[%clk 0:00:45]}  f5 {[%clk 0:00:50]} 57. Ke2 {[%clk 0:00:44]}  Kg3 {[%clk 0:00:44]} 58. Kf1 {[%clk 0:00:40]}  Kf4 {[%clk 0:00:38]} 59. Kf2 {[%clk 0:00:40]}  g4 {[%clk 0:00:38]} 60. Nf1 {[%clk 0:00:34]}  Ke4 {[%clk 0:00:36]} 61. Nd2+ {[%clk 0:00:33]}  Kf4 {[%clk 0:00:36]} 62. Nc4 {[%clk 0:00:31]}  Ke4 {[%clk 0:00:33]} 63. Nd6+ {[%clk 0:00:30]}  Kf4 {[%clk 0:00:32]} 64. Nf7 {[%clk 0:00:30]}  Ke4 {[%clk 0:00:28]} 65. Nh8 {[%clk 0:00:30]}  Kf4 {[%clk 0:00:28]} 66. Ng6+ {[%clk 0:00:30]}  Kg5 {[%clk 0:00:28]} 67. Ne7 {[%clk 0:00:30]}  Kf4 {[%clk 0:00:27]} 68. Nc6 {[%clk 0:00:30]}  Ke4 {[%clk 0:00:27]} 69. Nb4 {[%clk 0:00:29]}  Kf4 {[%clk 0:00:26]} 70. Nc2 {[%clk 0:00:24]}  Ke4 {[%clk 0:00:26]} 71. Ne3 {[%clk 0:00:18]}  Kf4 {[%clk 0:00:26]} 72. Nd5+ {[%clk 0:00:15]}  Ke4 {[%clk 0:00:26]} 73. Nf6+ {[%clk 0:00:14]}  Kf4 {[%clk 0:00:26]} 74. Nh7 {[%clk 0:00:13]}  Ke4 {[%clk 0:00:24]} 75. Nf8 {[%clk 0:00:09]}  Kf4 {[%clk 0:00:24]} 76. Ne6+ {[%clk 0:00:10]}  Ke4 {[%clk 0:00:22]} 77. Ng7 {[%clk 0:00:10]}  Kf4 {[%clk 0:00:23]} 78. Nh5+ {[%clk 0:00:09]}  Kg5 {[%clk 0:00:22]} 79. Ng7 {[%clk 0:00:09]}  Kf4 {[%clk 0:00:22]} 80. Ne6+ {[%clk 0:00:09]}  Ke4 {[%clk 0:00:23]} 81. hxg4 {[%clk 0:00:09]}  fxg4 {[%clk 0:00:23]} 82. Kg1 {[%clk 0:00:09]}  Kf5 {[%clk 0:00:22]} 83. Nc5 {[%clk 0:00:09]}  Kf4 {[%clk 0:00:22]} 84. Nd3+ {[%clk 0:00:09]}  Kg3 {[%clk 0:00:21]} 85. Nf2 {[%clk 0:00:05]}  h3 {[%clk 0:00:20]} 86. Nh1+ {[%clk 0:00:06]}  Kf4 {[%clk 0:00:19]} 87. gxh3 {[%clk 0:00:02]}  gxh3 {[%clk 0:00:19]} 88. Kh2 {[%clk 0:00:01]}  Kg4 {[%clk 0:00:20]} 0-1


[Site "https://www.chess.com"]

[Event "Titled Tuesday Blitz January 03 Early 2023"]
[White "Shubenkova, Veronika"]
[Black "Yaran, Siar"]
[WhiteFideId "44124040"]
[BlackFideId "6323006"]
[WhiteElo "1960"]
[BlackElo "2288"]
[Result "0-1"]
[Round "06"]
[TimeControl "180+2"]
[Date "2023.01.03"]
[WhiteClock "0:00:13"]
[BlackClock "0:00:07"]

1. e4 {[%clk 0:03:00]}  e5 {[%clk 0:02:59]} 2. Nf3 {[%clk 0:03:00]}  Nc6 {[%clk 0:03:00]} 3. Bb5 {[%clk 0:02:59]}  a6 {[%clk 0:03:00]} 4. Bxc6 {[%clk 0:02:59]}  dxc6 {[%clk 0:03:01]} 5. O-O {[%clk 0:03:00]}  f6 {[%clk 0:03:01]} 6. Re1 {[%clk 0:02:59]}  c5 {[%clk 0:03:01]} 7. Nc3 {[%clk 0:02:59]}  Be6 {[%clk 0:03:01]} 8. d3 {[%clk 0:02:58]}  Qd7 {[%clk 0:03:01]} 9. Be3 {[%clk 0:02:58]}  O-O-O {[%clk 0:02:50]} 10. a3 {[%clk 0:02:57]}  g5 {[%clk 0:02:50]} 11. Rb1 {[%clk 0:02:57]}  Qc6 {[%clk 0:02:44]} 12. Nd2 {[%clk 0:02:55]}  Ne7 {[%clk 0:02:40]} 13. Qe2 {[%clk 0:02:55]}  h5 {[%clk 0:02:38]} 14. Nc4 {[%clk 0:02:53]}  Ng6 {[%clk 0:02:22]} 15. b4 {[%clk 0:02:51]}  cxb4 {[%clk 0:02:22]} 16. axb4 {[%clk 0:02:51]}  b5 {[%clk 0:02:21]} 17. Nd5 {[%clk 0:02:06]}  bxc4 {[%clk 0:02:14]} 18. dxc4 {[%clk 0:02:05]}  Nf4 {[%clk 0:02:04]} 19. Bxf4 {[%clk 0:02:04]}  gxf4 {[%clk 0:02:03]} 20. b5 {[%clk 0:02:03]}  axb5 {[%clk 0:01:57]} 21. Rxb5 {[%clk 0:02:02]}  Rh6 {[%clk 0:01:14]} 22. Reb1 {[%clk 0:01:52]}  Kd7 {[%clk 0:01:12]} 23. Rb7 {[%clk 0:01:47]}  Bd6 {[%clk 0:01:03]} 24. R1b6 {[%clk 0:01:18]}  Qc5 {[%clk 0:00:41]} 25. Rb5 {[%clk 0:01:18]}  Qa3 {[%clk 0:00:34]} 26. Rb3 {[%clk 0:01:13]}  Qc1+ {[%clk 0:00:33]} 27. Qf1 {[%clk 0:01:12]}  Qxf1+ {[%clk 0:00:32]} 28. Kxf1 {[%clk 0:01:12]}  f5 {[%clk 0:00:26]} 29. f3 {[%clk 0:01:07]}  fxe4 {[%clk 0:00:25]} 30. fxe4 {[%clk 0:01:07]}  Rg6 {[%clk 0:00:22]} 31. Rd3 {[%clk 0:01:01]}  Kc6 {[%clk 0:00:19]} 32. Ra7 {[%clk 0:00:59]}  Rb8 {[%clk 0:00:19]} 33. c5 {[%clk 0:00:44]}  Rb1+ {[%clk 0:00:17]} 34. Ke2 {[%clk 0:00:42]}  Bxc5 {[%clk 0:00:17]} 35. Rxc7+ {[%clk 0:00:41]}  Kb5 {[%clk 0:00:16]} 36. Rb7+ {[%clk 0:00:41]}  Kc6 {[%clk 0:00:12]} 37. Rxb1 {[%clk 0:00:40]}  Rxg2+ {[%clk 0:00:12]} 38. Kd1 {[%clk 0:00:18]}  Rg1+ {[%clk 0:00:11]} 39. Kd2 {[%clk 0:00:18]}  Rxb1 {[%clk 0:00:12]} 40. Nc3 {[%clk 0:00:14]}  Rh1 {[%clk 0:00:12]} 41. Ne2 {[%clk 0:00:11]}  Rxh2 {[%clk 0:00:11]} 42. Ke1 {[%clk 0:00:04]}  Rxe2+ {[%clk 0:00:10]} 43. Kxe2 {[%clk 0:00:03]}  Bc4 {[%clk 0:00:11]} 44. Kf3 {[%clk 0:00:04]}  Bxd3 {[%clk 0:00:11]} 45. cxd3 {[%clk 0:00:05]}  Kb5 {[%clk 0:00:11]} 46. Kg2 {[%clk 0:00:06]}  Be7 {[%clk 0:00:08]} 47. Kh3 {[%clk 0:00:06]}  Kc5 {[%clk 0:00:09]} 48. Kg2 {[%clk 0:00:07]}  Kd4 {[%clk 0:00:09]} 49. Kf3 {[%clk 0:00:08]}  Kxd3 {[%clk 0:00:10]} 50. Kg2 {[%clk 0:00:09]}  Ke2 {[%clk 0:00:10]} 51. Kh1 {[%clk 0:00:10]}  f3 {[%clk 0:00:10]} 52. Kh2 {[%clk 0:00:10]}  Bg5 {[%clk 0:00:09]} 53. Kh1 {[%clk 0:00:11]}  f2 {[%clk 0:00:09]} 54. Kh2 {[%clk 0:00:12]}  Bf4+ {[%clk 0:00:09]} 55. Kh3 {[%clk 0:00:12]}  f1=Q+ {[%clk 0:00:09]} 56. Kh4 {[%clk 0:00:13]}  Qh1# {[%clk 0:00:07]} 0-1


[Site "https://www.chess.com"]

[Event "Titled Tuesday Blitz January 03 Early 2023"]
[White "Padmini, Rout"]
[Black "Koridze, Lile"]
[WhiteFideId "5029295"]
[BlackFideId "13612514"]
[WhiteElo "2375"]
[BlackElo "2191"]
[Result "1-0"]
[Round "06"]
[TimeControl "180+2"]
[Date "2023.01.03"]
[WhiteClock "0:00:31"]
[BlackClock "0:00:08"]

1. e4 {[%clk 0:03:00]}  c5 {[%clk 0:02:59]} 2. Nf3 {[%clk 0:02:59]}  d6 {[%clk 0:02:59]} 3. d4 {[%clk 0:02:56]}  cxd4 {[%clk 0:02:59]} 4. Nxd4 {[%clk 0:02:57]}  Nf6 {[%clk 0:03:00]} 5. Nc3 {[%clk 0:02:56]}  a6 {[%clk 0:03:00]} 6. Be3 {[%clk 0:02:54]}  e5 {[%clk 0:02:57]} 7. Nb3 {[%clk 0:02:53]}  Be6 {[%clk 0:02:58]} 8. Be2 {[%clk 0:02:53]}  Be7 {[%clk 0:02:57]} 9. O-O {[%clk 0:02:53]}  Nbd7 {[%clk 0:02:58]} 10. Bf3 {[%clk 0:02:49]}  O-O {[%clk 0:02:58]} 11. Nd5 {[%clk 0:02:48]}  Nxd5 {[%clk 0:02:57]} 12. exd5 {[%clk 0:02:47]}  Bf5 {[%clk 0:02:58]} 13. c4 {[%clk 0:02:47]}  b5 {[%clk 0:02:37]} 14. Rc1 {[%clk 0:02:23]}  Bf6 {[%clk 0:01:57]} 15. c5 {[%clk 0:02:11]}  e4 {[%clk 0:01:36]} 16. Be2 {[%clk 0:01:57]}  Bxb2 {[%clk 0:01:34]} 17. Rc2 {[%clk 0:01:52]}  Be5 {[%clk 0:01:32]} 18. c6 {[%clk 0:01:50]}  Nf6 {[%clk 0:01:29]} 19. c7 {[%clk 0:00:53]}  Qd7 {[%clk 0:01:17]} 20. Qd2 {[%clk 0:00:52]}  Bg4 {[%clk 0:00:23]} 21. Bxg4 {[%clk 0:00:52]}  Nxg4 {[%clk 0:00:22]} 22. Bf4 {[%clk 0:00:51]}  Rfe8 {[%clk 0:00:15]} 23. h3 {[%clk 0:00:49]}  Nf6 {[%clk 0:00:15]} 24. Bxe5 {[%clk 0:00:38]}  Rxe5 {[%clk 0:00:15]} 25. Rfc1 {[%clk 0:00:33]}  Rc8 {[%clk 0:00:15]} 26. Qa5 {[%clk 0:00:33]}  Rxd5 {[%clk 0:00:12]} 27. Qxa6 {[%clk 0:00:33]}  Ne8 {[%clk 0:00:12]} 28. Qb7 {[%clk 0:00:32]}  Kf8 {[%clk 0:00:09]} 29. Qxd5 {[%clk 0:00:31]}  Rxc7 {[%clk 0:00:07]} 30. Rxc7 {[%clk 0:00:31]}  Nxc7 {[%clk 0:00:08]} 31. Qb7 {[%clk 0:00:31]} 1-0


[Site "https://www.chess.com"]